lending/lending_fUSD_20250406
["ID","MTS","AMOUNT","RATE_DAILY","PERIOD"]
[357215006,1743900653505,-4897.26009211,0.00044612,15]
[357215007,1743900653515,-1000.0,0.000452,7]
[357215008,1743900653524,-874.15898175,0.00045682,15]
[357215009,1743900653533,-950.0,0.00046575,90]
[357215010,1743900653543,-4897.26009211,0.00047041,15]
[357215011,1743900653552,-1000.0,0.000472,7]
[357215012,1743900653562,-151.2,0.000475,2]
[357215013,1743900653571,-208.82738031,0.00047657,7]
[357215014,1743900653581,-20658.03,0.00047667,2]
[357215015,1743900653591,-178.69131132,0.00047905,30]
[357215016,1743900653601,-2000.0,0.000485,2]
[357215017,1743900653611,-874.15898175,0.00048791,15]
[357215018,1743900653621,-2000.0,0.00048819,8]
[357215019,1743900653630,-177.9,0.00049,120]
[357215020,1743900653640,-500.0,0.00049123,2]
[357215021,1743900653652,-750.0,0.00049315,120]
[357215022,1743900653662,-750.0,0.00049315,120]
[357215023,1743900653672,-750.0,0.00049315,120]
[357215024,1743900653682,-750.0,0.00049315,120]
[357215025,1743900653693,-750.0,0.00049315,120]
[357215026,1743900653702,-750.0,0.00049315,120]
[357215027,1743900653711,-750.0,0.00049315,120]
[357215028,1743900653720,-250.0,0.00049315,120]
[357215029,1743900653731,-3282.2,0.000494,14]
[357215030,1743900653742,-4897.26009211,0.00049471,15]
[357215031,1743900653751,-575.067,0.00049986,88]
[357215032,1743900653761,-185.53,0.00050036,2]
[357215033,1743900653770,-177.32702947,0.00050322,27]
[357215034,1743900653779,-2000.0,0.00050416,8]
[357215035,1743900653789,-619.88439725,0.00050587,2]
[357215036,1743900653798,-157.39,0.00050613,2]
[357215037,1743900653807,-286.58739547,0.00050633,30]
[357215038,1743900653816,-177.32702946,0.00050767,27]
[357215039,1743900653825,-500.0,0.00050767,60]
[357215040,1743900653834,-500.0,0.00051041,60]
[357215041,1743900653843,-6000.0,0.000512,120]
[357215042,1743900653852,-5906.38405096,0.000512,120]
[357215043,1743900653861,-425.22751473,0.000512,120]
[357215044,1743900653871,-3040.0,0.000512,120]
[357215045,1743900653880,-2000.0,0.000512,2]
[357215046,1743900653889,-177.32702946,0.00051211,28]
[357215047,1743900653899,-3282.2,0.000513,14]
[357215048,1743900653908,-500.0,0.00051315,60]
[357215049,1743900653917,-6000.0,0.000515,120]
[357215050,1743900653926,-3000.0,0.000515,120]
[357215051,1743900653935,-526.58,0.00051589,60]
[357215052,1743900653944,-62129.7314,0.00051651,2]
[357215053,1743900653953,-177.32702946,0.00051656,28]
[357215054,1743900653963,-150.0,0.00051818,7]
[357215055,1743900653972,-150.0,0.00051875,7]
[357215056,1743900653984,-155314.93280933,0.00051878,120]
[357215057,1743900653994,-500.0,0.00051899,7]
[357215058,1743900654003,-600.0,0.00051899,2]
[357215059,1743900654012,-416.74689519,0.00051899,3]
[357215060,1743900654021,-552.51314024,0.00051899,120]
[357215061,1743900654030,-540.45490497,0.00051899,120]
[357215062,1743900654038,-511.33216872,0.00051899,120]
[357215063,1743900654047,-519.05196203,0.00051899,120]
[357215064,1743900654056,-484.11755892,0.00051899,120]
[357215065,1743900654065,-500.0,0.00051899,120]
[357215066,1743900654074,-307.6687376,0.000519,2]
[357215067,1743900654083,-4897.26009211,0.000519,15]
[357215068,1743900654093,-4585.19017284,0.000519,30]
[357215069,1743900654102,-717.27898222,0.000519,2]
[357215070,1743900654111,-874.15898175,0.000519,15]
[357215071,1743900654121,-2181.64476786,0.000519,2]
[357215072,1743900654131,-150.0,0.0005191,7]
[357215073,1743900654140,-150.0,0.0005197,7]
[357215074,1743900654149,-500.11409116,0.00051973,10]
[357215075,1743900654159,-500.0,0.00051973,10]
[357215076,1743900654168,-500.0,0.00051973,10]
[357215077,1743900654179,-500.0,0.00051973,10]
[357215078,1743900654189,-208.82738031,0.0005199,7]
[357215079,1743900654199,-208.82738031,0.0005199,7]
[357215080,1743900654209,-778.67608833,0.00052,61]
[357215081,1743900654218,-86768.23387575,0.00052,61]
[357215082,1743900654227,-1000000.0,0.00052,120]
[357215083,1743900654236,-1000000.0,0.00052,120]
[357215084,1743900654245,-1000000.0,0.00052,120]
[357215085,1743900654254,-500.0,0.00052,120]
[357215086,1743900654266,-494.06511391,0.00052,30]
[357215087,1743900654275,-160922.64848402,0.00052,120]
[357215088,1743900654380,-1139.22878096,0.00052,120]
[357215089,1743900654391,-952.47687904,0.00052,120]
[357215090,1743900654407,-508.6985193,0.00030136,2]
[357215091,1743900654417,-5382.93253181,0.00052,120]
[357215092,1743900654429,-8275.65403638,0.00052,120]
[357215093,1743900654444,-497.36128,0.00030136,2]
[357215094,1743900654454,-206.68434403,0.00052,120]
[357215095,1743900654495,165.6,0.00030422,2]
[357215096,1743900654991,-522.99,0.00030422,2]
[357215097,1743900655000,-254.62714473,0.00032686,2]
[357215098,1743900655011,-433.96285527,0.00032686,2]
[357215099,1743900655020,-4788.42,0.00052,120]
[357215100,1743900655114,-166.65817894,0.00030136,2]
[357215101,1743900655124,-688.59,0.0003495,2]
[357215102,1743900655133,-688.59,0.00037214,2]
[357215103,1743900655143,-688.59,0.00039478,2]
[357215104,1743900655152,-688.59,0.00041742,2]
[357215105,1743900655161,-688.59,0.00044006,2]
[357215106,1743900655170,-566.09182106,0.00046269,2]
[357215107,1743900655183,-122.49817894,0.00046269,2]
[357215108,1743900655193,-688.59,0.00048533,2]
[357215109,1743900655202,-106.91182106,0.00050797,2]
[357215110,1743900655217,-581.67817894,0.00050797,2]
[357215111,1743900655227,-47534.8735033,0.00052,120]
[357215112,1743900655241,-2738.94935942,0.00052,120]
[357215113,1743900655311,-165.6,0.00052,120]
[357215114,1743900659814,-150.0,0.00051315,60]
[357215115,1743900659837,-150.0,0.00052,7]
[357215116,1743900663793,-163.29613777,0.00051999,9]
[357215117,1743901153525,185.12,0.00013699,2]
[357215230,1743901831741,-150.03717506,0.00030036,2]
[357215231,1743901831751,-250.0,0.00030085,2]
[357215232,1743901831761,-230.21112532,0.00030136,2]
[357215233,1743901831774,-269.78887468,0.00030136,2]
[357215234,1743901831784,-177.30595288,0.0003031,2]
[357215235,1743901831794,-177.30595285,0.00030322,2]
[357215236,1743901831803,-812.86841441,0.00030322,2]
[357215237,1743901831815,-748.31010178,0.00030322,2]
[357215238,1743901831825,-177.30595285,0.00030335,2]
[357215239,1743901831835,-177.30595285,0.00030347,2]
[357215240,1743901831844,-177.30595285,0.0003036,2]
[357215241,1743901831854,-177.30595285,0.00030372,2]
[357215242,1743901831864,-83.65546024,0.00030385,2]
[357215243,1743901831876,-93.65049261,0.00030385,2]
[357215244,1743901831886,-177.30595285,0.00030397,2]
[357215245,1743901831895,-177.30595285,0.0003041,2]
[357215246,1743901831905,-500.0,0.0003041,2]
[357215247,1743901831915,-177.30595285,0.00030422,2]
[357215248,1743901831924,-1789.0,0.00030522,2]
[357215249,1743901831934,-8727.78934318,0.00030523,2]
[357215250,1743901831945,-14450.15065682,0.00030523,2]
[357215251,1743901831955,-97.25503847,0.00030523,2]
[357215252,1743901831968,-4803.67396324,0.00030523,2]
[357215253,1743901831979,-7890.2821884,0.00030523,2]
[357215254,1743901831990,-2475.883476,0.00030523,2]
[357215255,1743901832001,-11389.38533389,0.00030523,2]
[357215256,1743901832011,-500.0,0.00030684,2]
[357215257,1743901832021,-500.0,0.00030958,2]
[357215258,1743901832030,-815.904,0.00030958,27]
[357215259,1743901832039,-190.145,0.00030958,27]
[357215260,1743901832048,-500.0,0.00031232,2]
[357215261,1743901832057,-500.0,0.00031506,2]
[357215262,1743901832066,-139.94347513,0.0003178,2]
[357215263,1743901832078,-360.05652487,0.0003178,2]
[357215264,1743901832087,-33.49527001,0.00032054,2]
[357215265,1743901832098,-466.50472999,0.00032054,2]
[357215266,1743901832107,-368.66425865,0.00032328,2]
[357215267,1743901832119,-131.33574135,0.00032328,2]
[357215268,1743901832128,-661.76174439,0.00032552,2]
[357215269,1743901832137,-500.0,0.00032602,2]
[357215270,1743901832147,-401.0680085,0.00032876,2]
[357215271,1743901832156,-250.0,0.00033039,2]
[357215272,1743901832166,-250.0,0.00033039,2]
[357215273,1743901832175,-731.07114771,0.00035703,2]
[357215274,1743901832186,-268.92885229,0.00035703,2]
[357215275,1743901832196,-517.14,0.00035801,2]
[357215276,1743901832205,-1066.06952671,0.00036012,120]
[357215277,1743901832221,-943.7974135,0.00036012,120]
[357215278,1743901832233,-741.13305979,0.00036012,120]
[357215279,1743901832242,-79.01989786,0.00036562,2]
[357215280,1743901832253,-120.98010214,0.00036562,2]
[357215281,1743901832264,-442.5,0.00036606,2]
[357215282,1743901832273,-198.84,0.00036745,120]
[357215283,1743901832283,-1322.45489786,0.00036922,2]
[357215284,1743901832295,-326.97510214,0.00036922,2]
[357215285,1743901832305,-784.99973545,0.00037067,2]
[357215288,1743901837589,-744.95026455,0.00037067,2]
[357215289,1743901837600,-3618.76,0.00037067,90]
[357215290,1743901837610,-9999.99,0.00037067,2]
[357215291,1743901837620,-61.00149349,0.00037067,2]
[357215292,1743901837651,-765.85884125,0.00037067,2]
[357215293,1743901837662,-500.0,0.00037067,2]
[357215294,1743901837678,-5752.61080137,0.00037067,2]
[357215295,1743901837719,-2920.51886389,0.00037067,2]
[357215296,1743901837729,-484.17,0.00037067,30]
[357215297,1743901837739,-299.7,0.00037067,2]
[357215298,1743901837750,-3261.08078677,0.00037067,2]
[357215299,1743901837761,-170.77921323,0.00037067,2]
[357215300,1743901837771,-542.05,0.00037067,2]
[357215301,1743901837781,-150.99,0.00037067,2]
[357215302,1743901837791,-231.62913914,0.00037067,2]
[357215303,1743901837803,-7295.19960709,0.00037067,2]
[357215304,1743901837814,-1799.94722555,0.00037067,2]
[357215305,1743901837826,-467.51856445,0.00037067,2]
[357215306,1743901837838,-205.69546377,0.00037067,2]
[357215307,1743901837847,-999.99,0.00037067,2]
[357215308,1743901837857,-500.0,0.0003708,2]
[357215309,1743901837866,-3163.33,0.00037116,2]
[357215310,1743901837876,-150.0,0.00037116,7]
[357215311,1743901837885,-245.81,0.00037627,2]
[357215312,1743901837895,-209.67153349,0.00037716,2]
[357215313,1743901837906,-5253.76383158,0.00037716,2]
[357215314,1743901837918,-7882.29463493,0.00037716,2]
[357215315,1743901837927,-1067.39,0.00037719,2]
[357215316,1743901837938,-792.65,0.00037729,2]
[357215317,1743901837947,-200.0,0.00037742,2]
[357215318,1743901837956,-370.20203982,0.00037845,2]
[357215319,1743901837967,-229.79796018,0.00037845,2]
[357215320,1743901837976,-1792.43,0.00038041,2]
[357215321,1743901837986,-711.48,0.00038059,2]
[357215322,1743901837995,-517.14,0.00038065,2]
[357215323,1743901838005,-250.0,0.0003825,2]
[357215324,1743901838014,-16213.34964058,0.00038812,2]
[357215325,1743901838025,-425.84099571,0.00038812,2]
[357215332,1743901841747,-7260.80936371,0.00038812,2]
[357215333,1743901841756,-1000.0,0.00040166,2]
[357215334,1743901841767,-395.9204832,0.0004025,5]
[357215335,1743901841777,-517.14,0.00040329,2]
[357215336,1743901841787,-2807.74167255,0.00040539,15]
[357215337,1743901841796,-5000.01,0.00041653,2]
[357215338,1743901841805,-500.0,0.00041653,2]
[357215339,1743901841814,-500.0,0.0004168,10]
[357215340,1743901841823,-375.12032341,0.0004168,2]
[357215341,1743901841832,-478.07077563,0.0004168,10]
[357215342,1743901841841,-2105.35,0.00041782,2]
[357215343,1743901841850,-2807.74167254,0.00041812,15]
[357215344,1743901841859,-187.9057,0.00042176,2]
[357215345,1743901841868,-848.35,0.00042199,2]
[357215346,1743901841877,-848.35,0.0004221,2]
[357215347,1743901841886,-848.35,0.00042221,2]
[357215348,1743901841895,-848.35,0.00042232,2]
[357215349,1743901841904,-848.35,0.00042243,2]
[357215350,1743901841913,-848.35,0.00042254,2]
[357215351,1743901841922,-848.35,0.00042265,2]
[357215352,1743901841931,-848.35,0.00042276,2]
[357215353,1743901841940,-848.35,0.00042287,2]
[357215354,1743901841948,-848.35,0.00042299,2]
[357215355,1743901841958,-848.35,0.0004231,2]
[357215356,1743901841967,-848.35,0.00042321,2]
[357215357,1743901841976,-848.35,0.00042332,2]
[357215358,1743901841984,-848.35,0.00042343,2]
[357215359,1743901841994,-848.35,0.00042354,2]
[357215360,1743901842004,-848.35,0.00042365,2]
[357215361,1743901842013,-848.35,0.00042376,2]
[357215362,1743901842023,-848.35,0.00042387,2]
[357215363,1743901842032,-848.35,0.00042398,2]
[357215364,1743901842041,-848.35,0.00042409,2]
[357215365,1743901842050,-244.15,0.000425,2]
[357215366,1743901842060,-3251.88,0.00042525,2]
[357215367,1743901842069,-1274.37735984,0.0004256,6]
[357215368,1743901842078,-1493.23,0.0004256,2]
[357215369,1743901842087,-202.5129,0.0004256,2]
[357215370,1743901842096,-517.14,0.00042593,2]
[357215371,1743901842105,-22438.27,0.0004266,2]
[357215372,1743901842114,-150.0,0.00043076,2]
[357215373,1743901842123,-500.0,0.00043085,31]
[357215374,1743901842132,-270.343877,0.00043085,31]
[357215375,1743901842141,-500.0,0.00043085,31]
[357215376,1743901842150,-500.0,0.00043085,31]
[357215377,1743901842160,-2807.74167254,0.00043086,15]
[357215378,1743901842169,-153.18,0.00043796,2]
[357215379,1743901842178,-1285.0,0.00043796,2]
[357215380,1743901842187,-2042.0,0.00043796,2]
[357215381,1743901842196,-711.22,0.00043796,2]
[357215382,1743901842206,-1415.429,0.00043796,2]
[357215383,1743901842215,-909.0,0.00043796,2]
[357215384,1743901842224,-1276.0,0.00043796,2]
[357215385,1743901842234,-790.0,0.00043796,2]
[357215386,1743901842243,-1435.0,0.00043796,2]
[357215387,1743901842253,-4097.0,0.00043796,2]
[357215388,1743901842262,-543.0,0.00043796,2]
[357215389,1743901842271,-3951.0,0.00043796,2]
[357215390,1743901842279,-217.695,0.00043796,2]
[357215391,1743901842289,-851.0,0.00043796,2]
[357215392,1743901842298,-166.67,0.00044051,2]
[357215393,1743901842307,-2807.74167254,0.00044359,15]
[357215394,1743901842317,-649.0,0.00044521,2]
[357215395,1743901842327,-1000.0,0.00044629,2]
[357215396,1743901842336,-517.14,0.00044857,2]
[357215397,1743901842346,-5080.0,0.00045,5]
[357215398,1743901842355,-2807.74167254,0.00045633,15]
[357215399,1743901842365,-198.84,0.00045931,120]
[357215400,1743901842374,-1283.0,0.00046796,2]
[357215401,1743901842384,-2040.0,0.00046796,2]
[357215402,1743901842394,-1276.0,0.00046796,2]
[357215403,1743901842404,-909.0,0.00046796,2]
[357215404,1743901842413,-788.0,0.00046796,2]
[357215405,1743901842422,-1433.0,0.00046796,2]
[357215407,1743901842431,-4093.0,0.00046796,2]
[357215409,1743901842440,-543.0,0.00046796,2]
[357215410,1743901842450,-151.0,0.00046796,2]
[357215411,1743901842459,-2807.74167254,0.00046906,15]
[357215412,1743901842469,-517.14,0.00047121,2]
[357215413,1743901842478,-1307.0,0.00047333,2]
[357215414,1743901842488,-2807.74167254,0.0004818,15]
[357215416,1743901842497,-2000.0,0.000485,2]
[357215418,1743901842507,-1000.0,0.00049092,2]
[357215420,1743901842516,-500.0,0.00049315,120]
[357215422,1743901842526,-517.14,0.00049384,2]
[357215424,1743901842536,-2807.74167254,0.00049453,15]
[357215425,1743901842545,-425.48,0.00050324,2]
[357215426,1743901842554,-1355.556531,0.00050405,4]
[357215427,1743901842563,-169.4,0.00050534,2]
[357215430,1743901842572,-815.904,0.00050719,90]
[357215433,1743901842582,-2807.74167254,0.00050727,15]
[357215436,1743901842591,-1252.15,0.00050909,2]
[357215438,1743901842600,-2000.0,0.000512,2]
[357215439,1743901842609,-500.0,0.00051248,120]
[357215440,1743901842619,-500.0,0.00051248,120]
[357215441,1743901842628,-500.0,0.00051248,120]
[357215442,1743901842637,-500.0,0.00051248,120]
[357215443,1743901842647,-166.67,0.00051321,2]
[357215444,1743901842656,-152.0,0.00051349,3]
[357215445,1743901842666,-3774.94179018,0.0005148,2]
[357215446,1743901842675,-517.14,0.00051648,2]
[357215447,1743901842684,-812.97,0.000517,44]
[357215448,1743901842693,-160.30541141,0.000517,28]
[357215449,1743901842703,-504.89213716,0.00051799,120]
[357215450,1743901842712,-500.0,0.00051799,120]
[357215451,1743901842721,-500.0,0.00051799,120]
[357215452,1743901842730,-504.37245574,0.00051799,120]
[357215453,1743901842739,-615.4262,0.000518,2]
[357215454,1743901842749,-571.7685,0.000518,2]
[357215455,1743901842759,-301.33,0.000518,2]
[357215456,1743901842768,-6957.4542,0.000518,2]
[357215457,1743901842778,-812.97,0.000518,44]
[357215458,1743901842787,-1274.37735983,0.00051878,8]
[357215459,1743901842797,-3095.86645097,0.00051879,4]
[357215460,1743901842810,-5554.0,0.00051879,4]
[357215470,1743901845769,-431.22961645,0.00039946,30]
[357215471,1743901845780,-1227.68371111,0.00039946,30]
[357215472,1743901846002,-2174.73637244,0.00039946,30]
[357215473,1743901846012,-150.0,0.000512,2]
[357215474,1743901846021,-703.5347477,0.00051879,4]
[357215475,1743901846030,-394.1873906,0.0005188,4]
[357215476,1743901846123,-1415.44956061,0.0005188,4]
[357215539,1743902162580,163.54,0.00013699,2]
[357215541,1743902330288,-250.0,0.00019,2]
[357215543,1743902618814,-154.6,0.00026849,2]
[357215544,1743902709091,-151.43559359,0.0002,2]
[357215545,1743902709726,-151.43559359,0.0002,2]
[357215560,1743902742804,-814.30647874,0.000154,2]
[357215561,1743902823009,-155.83404807,0.000199,3]
[357215562,1743902823035,-144.16595193,0.00019999,2]
[357215579,1743902865808,-354.38434639,0.00019973,2]
[357215580,1743902869866,-146.62001648,0.00019973,2]
[357215581,1743902869889,-55.29243226,0.00019999,2]
[357215582,1743902879573,10000.0,0.0001,2]
[357215583,1743902879594,1132.30246208,0.0001,2]
[357215584,1743902880120,-100.54161581,0.00019999,2]
[357215585,1743902880144,-196.63044988,0.0002,2]
[357215587,1743902923206,400.0,0.000146,5]
[357215589,1743902923547,-3121.27255706,0.000149,2]
[357215590,1743902923575,-6532.02816341,0.00015,2]
[357215592,1743902923608,-454.77962923,0.00015,2]
[357215594,1743902923656,-9653.30072047,0.00015,2]
[357215595,1743902925259,800.0,0.000147,5]
[357215596,1743902927369,1200.0,0.000148,5]
[357215597,1743902929460,1700.0,0.000149,5]
[357215598,1743902948488,-300.0,0.00014999,2]
[357215600,1743902948517,-9748.52834187,0.00015,2]
[357215601,1743902948549,-703.34321146,0.00015,2]
[357215603,1743902948656,-10048.52834187,0.00015,2]
[357215608,1743902973151,-8419.83710398,0.00015,2]
[357215610,1743902973195,-10464.53633978,0.00015,2]
[357215613,1743902974467,-26591.0,0.00015,2]
[357215615,1743902994011,158.44,0.00013699,2]
[357215616,1743902994326,158.44,0.00013699,2]
[357215617,1743902994707,158.45759199,0.00013699,2]
[357215618,1743902998222,-10842.22380865,0.00015,2]
[357215620,1743902998276,-7755.15370454,0.00015,2]
[357215622,1743903005735,-1416.29,0.0001499,2]
[357215623,1743903005762,-1380.71,0.0001499,2]
[357215624,1743903024061,255.6,0.00036648,30]
[357215625,1743903030142,-630.0,0.000149,2]
[357215630,1743903031975,-305.90379874,0.000149,2]
[357215631,1743903031985,-1190.497958,0.00014924,2]
[357215632,1743903031994,-150.0,0.00014999,2]
[357215633,1743903032003,-300.0,0.00014999,2]
[357215634,1743903032013,-52558.93390244,0.00015,2]
[357215635,1743903032024,-1905.44085045,0.00015,2]
[357215636,1743903032036,-10484.19056156,0.00015,2]
[357215637,1743903032059,-387.13222533,0.00015,2]
[357215638,1743903032069,-2027.08012665,0.00015,2]
[357215639,1743903032158,-360.70058689,0.00015,2]
[357215640,1743903032280,-982.00095212,0.00015,2]
[357215643,1743903037960,-3111.54592408,0.00015,2]
[357215644,1743903037973,-8217.1,0.00015,2]
[357215645,1743903037984,-2090.03230026,0.00015,2]
[357215646,1743903037995,-9778.63,0.00015,2]
[357215647,1743903038006,-2266.55,0.00015,2]
[357215648,1743903038018,-1062.4557274,0.00015,2]
[357215649,1743903038070,-67876.94801665,0.00015,2]
[357215650,1743903038155,-2113458.43756157,0.00015,2]
[357215651,1743903038167,-3279.73300446,0.00015,2]
[357215668,1743903040157,-622.40087519,0.00015,2]
[357215669,1743903040169,-2674.8611521,0.00015,2]
[357215670,1743903040180,-423.54972597,0.00015,2]
[357215671,1743903040191,-520.933954,0.00015,2]
[357215672,1743903040202,-6539.6072433,0.00015,2]
[357215673,1743903040213,-1756.1,0.00015,2]
[357215674,1743903040224,-15011.03349337,0.00015,2]
[357215675,1743903040277,-1184.91991729,0.00015,2]
[357215676,1743903040480,-1235.81173418,0.00015,2]
[357215677,1743903040491,-1259.96086,0.00015,2]
[357215678,1743903040502,-3594.85851551,0.00015,2]
[357215686,1743903043796,-341.46735558,0.00015,2]
[357215687,1743903043808,-1061.29224118,0.00015,2]
[357215688,1743903043918,227.18,0.00013699,2]
[357215689,1743903043951,227.18,0.00013699,2]
[357215690,1743903044240,227.18,0.00013699,2]
[357215691,1743903044622,227.18,0.00013699,2]
[357215692,1743903045018,227.18,0.00013699,2]
[357215693,1743903045357,227.18,0.00013699,2]
[357215694,1743903045678,227.18,0.00013699,2]
[357215697,1743903045987,227.18,0.00013699,2]
[357215698,1743903046118,-3416.64752785,0.00015,2]
[357215699,1743903046131,-7750.50826345,0.00015,2]
[357215700,1743903046143,-196900.70064157,0.00015,2]
[357215701,1743903046152,-935.90379873,0.00015608,2]
[357215702,1743903046161,-250.0,0.00015708,2]
[357215703,1743903046171,-420.0,0.00016416,2]
[357215704,1743903046180,-250.0,0.000165,2]
[357215705,1743903046189,-250.0,0.00017769,2]
[357215706,1743903046199,-587.0,0.00017966,2]
[357215707,1743903046208,-823.0,0.00019663,2]
[357215708,1743903046220,-2100.0,0.000198,7]
[357215709,1743903046230,-400.0,0.000199,7]
[357215710,1743903046239,-65221.44994304,0.0002,2]
[357215711,1743903046251,-3464.28,0.0002,2]
[357215712,1743903046262,-1907.42836594,0.0002,2]
[357215713,1743903046275,-279.88714531,0.0002,2]
[357215714,1743903046288,-4545.31242003,0.0002,2]
[357215715,1743903046318,227.18,0.00013699,2]
[357215716,1743903046332,-4135.84504445,0.0002,2]
[357215717,1743903046343,-674.79429573,0.0002,2]
[357215718,1743903046355,-10581.384185,0.0002,2]
[357215719,1743903046366,-3492.16260708,0.0002,2]
[357215720,1743903046407,-1042.4337992,0.0002,2]
[357215721,1743903046418,-518.11771717,0.0002,2]
[357215722,1743903046429,-455.85450295,0.0002,2]
[357215723,1743903046440,-49868.69439024,0.0002,2]
[357215738,1743903046642,227.18,0.00013699,2]
[357215744,1743903047066,227.18,0.00013699,2]
[357215745,1743903047605,227.18,0.00013699,2]
[357215746,1743903047809,227.18,0.00013699,2]
[357215747,1743903048183,227.18,0.00013699,2]
[357215748,1743903048559,227.18,0.00013699,2]
[357215749,1743903048887,227.18,0.00013699,2]
[357215750,1743903049264,227.18,0.00013699,2]
[357215751,1743903049593,227.18,0.00013699,2]
[357215752,1743903050045,227.18,0.00013699,2]
[357215753,1743903050430,227.35521224,0.00013699,2]
[357215754,1743903080270,-173.0307,0.00019863,2]
[357215755,1743903143192,861.33,0.00013699,2]
[357215756,1743903143528,861.33,0.00013699,2]
[357215757,1743903143912,150.0,0.00013699,2]
[357215758,1743903143935,711.33,0.00013699,2]
[357215759,1743903144366,861.33,0.00013699,2]
[357215760,1743903144693,861.33,0.00013699,2]
[357215761,1743903145018,861.33,0.00013699,2]
[357215762,1743903145422,861.33,0.00013699,2]
[357215763,1743903145765,861.33,0.00013699,2]
[357215764,1743903146153,861.33,0.00013699,2]
[357215765,1743903146579,861.33,0.00013699,2]
[357215766,1743903146966,861.33,0.00013699,2]
[357215767,1743903147317,861.33,0.00013699,2]
[357215768,1743903147668,861.33,0.00013699,2]
[357215769,1743903148161,861.33,0.00013699,2]
[357215770,1743903148431,861.33,0.00013699,2]
[357215771,1743903148847,861.33,0.00013699,2]
[357215772,1743903149188,861.33,0.00013699,2]
[357215773,1743903149533,861.33,0.00013699,2]
[357215774,1743903149902,197.1645,0.00013699,2]
[357215775,1743903149926,664.1655,0.00013699,2]
[357215776,1743903150248,861.41304934,0.00013699,2]
[357215778,1743903195660,150.0,0.00013699,2]
[357215779,1743903200755,163.64,0.00013699,2]
[357215780,1743903250535,304.23181752,0.00036648,60]
[357215781,1743903488093,-234.49863337,0.000198,2]
[357215782,1743903488115,-755.50350406,0.000198,2]
[357215783,1743903488136,-234.49863336,0.0001985,2]
[357215784,1743903488160,-27.9693,0.00019863,2]
[357215785,1743903488182,-250.0,0.00019882,2]
[357215786,1743903488204,-11823.6741898,0.000199,2]
[357215787,1743903488226,-609.6593,0.000199,2]
[357215788,1743903488248,-205.21441046,0.000199,2]
[357215789,1743903488269,-234.49863336,0.000199,2]
[357215790,1743903488292,-596.75895848,0.000199,2]
[357215791,1743903488314,-7180.06052724,0.000199,2]
[357215792,1743903488336,-213.56256389,0.000199,2]
[357215793,1743903488357,-3059.89494095,0.000199,2]
[357215794,1743903488379,-198.86575981,0.00019999,2]
[357215795,1743903488400,-248.48559416,0.00019999,2]
[357215796,1743903488423,-974126.85505106,0.0002,2]
[357215797,1743903553751,3140.1371269,0.00036661,34]
[357215798,1743903906888,3025.0,0.00032,120]
[357215808,1743904116556,-202.0,0.00016712,2]
[357215851,1743904232104,-0.48,0.00016712,2]
[357215852,1743904232114,-161.28,0.00018008,2]
[357215853,1743904232124,-237.66291662,0.00018905,2]
[357215854,1743904232136,-62.33708338,0.00018905,2]
[357215855,1743904232146,-250.0,0.00019,2]
[357215856,1743904232155,-250.0,0.00019551,2]
[357215857,1743904232165,-668.803,0.000196,2]
[357215858,1743904232174,-193.10273931,0.000196,2]
[357215859,1743904232184,-300.0,0.00019899,2]
[357215860,1743904232194,-253.59583576,0.000199,2]